bitfinex/quotes_BTCUSD_20230115
["timestamp","ask_amount","ask_price","bid_price","bid_amount"]
[1673771626504,1.130811,20660.0,20659.0,0.006]
[1673771626728,1.430811,20660.0,20659.0,0.006]
[1673771627498,1.130811,20660.0,20659.0,0.006]
[1673771627782,0.93975378,20660.0,20659.0,0.08365]
[1673771628052,0.61824278,20660.0,20659.0,0.08365]
[1673771628546,0.93975378,20660.0,20659.0,0.08365]
[1673771628787,0.93975378,20660.0,20659.0,0.006]
[1673771629033,0.56624278,20660.0,20657.0,0.47096054]
[1673771629288,0.59024278,20660.0,20659.0,0.006]
[1673771629579,0.59024278,20660.0,20659.0,0.08365]
[1673771629826,0.024,20660.0,20659.0,0.08365]
[1673771630071,0.024,20660.0,20659.0,0.5617]
[1673771630320,0.00473639,20663.0,20659.0,1.15316343]
[1673771630321,0.49697213,20663.0,20659.0,1.15316343]
[1673771630610,0.49697213,20663.0,20659.0,1.14716343]
[1673771631110,0.024,20660.0,20659.0,1.15316343]
[1673771631330,0.49697213,20663.0,20659.0,1.14716343]
[1673771631577,0.52097213,20663.0,20659.0,1.15316343]
[1673771631907,0.02873639,20663.0,20659.0,0.5677]
[1673771632603,0.02873639,20663.0,20659.0,1.2277266]
[1673771632852,0.02873639,20663.0,20660.0,0.53703165]
[1673771633109,0.02873639,20663.0,20661.0,1.452009]
[1673771633377,0.02873639,20663.0,20661.0,1.752009]
[1673771633631,0.00473639,20663.0,20661.0,1.752009]
[1673771634408,0.00673639,20663.0,20661.0,1.822009]
[1673771634645,0.00473639,20663.0,20662.0,0.1]
[1673771634931,0.00473639,20663.0,20662.0,0.48398]
[1673771635178,0.71899122,20663.0,20662.0,0.48398]
[1673771635431,0.54396851,20662.0,20661.0,0.66880356]
[1673771635957,0.19546234,20663.0,20661.0,0.59880356]
[1673771636227,0.66722684,20663.0,20661.0,0.66880356]
[1673771636485,0.66722684,20663.0,20661.0,0.59880356]
[1673771636743,0.002,20662.0,20661.0,0.66880356]
[1673771637058,0.66522684,20663.0,20661.0,0.59880356]
[1673771637235,0.66722684,20663.0,20661.0,0.66880356]
[1673771637489,0.66522684,20663.0,20661.0,0.59880356]
[1673771637749,0.002,20662.0,20661.0,0.66880356]
[1673771637997,0.66522684,20663.0,20661.0,0.59880356]
[1673771638494,0.00473639,20663.0,20661.0,0.59880356]
[1673771639553,0.00673639,20663.0,20661.0,0.66880356]
[1673771639762,0.58224759,20663.0,20661.0,0.66880356]
[1673771640298,1.20279641,20662.0,20657.0,0.64232786]
[1673771640559,1.20279641,20662.0,20661.0,0.041]
[1673771640560,0.483987,20662.0,20661.0,0.041]
[1673771640801,1.067298,20662.0,20661.0,0.041]
[1673771641052,0.936198,20662.0,20661.0,0.047]
[1673771641560,1.036198,20662.0,20661.0,0.047]
[1673771641817,0.02812779,20660.0,20656.0,1.13635281]
[1673771642104,0.216345,20659.0,20656.0,1.13635281]
[1673771642324,0.64215979,20660.0,20656.0,1.13635281]
[1673771642821,0.64215979,20660.0,20657.0,0.003]
[1673771643071,0.64215979,20660.0,20656.0,0.5598]
[1673771643324,0.87248785,20659.0,20656.0,1.22852098]
[1673771643582,1.1607628,20659.0,20656.0,1.22852098]
[1673771643826,0.1312,20658.0,20656.0,1.23152098]
[1673771644076,0.615285,20658.0,20656.0,1.23152098]
[1673771644319,0.615285,20658.0,20656.0,0.003]
[1673771644579,0.321511,20657.0,20656.0,0.003]
[1673771644835,0.805608,20657.0,20656.0,0.003]
[1673771645097,0.484097,20657.0,20656.0,0.003]
[1673771645353,0.484097,20657.0,20654.0,0.50428085]
[1673771645601,1.00164559,20657.0,20656.0,0.003]
[1673771645868,1.00164559,20657.0,20654.0,0.50428085]
[1673771646104,1.06664559,20657.0,20654.0,0.50428085]
[1673771646603,1.00164559,20657.0,20654.0,0.50428085]
[1673771647104,0.66980157,20656.0,20654.0,0.003]
[1673771647365,0.66980157,20656.0,20653.0,0.56162946]
[1673771647366,1.15392757,20656.0,20653.0,0.56162946]
[1673771647634,1.34465352,20656.0,20653.0,1.19242502]
[1673771647862,1.15392757,20656.0,20653.0,1.19242502]
[1673771648110,0.66130906,20655.0,20654.0,0.003]
[1673771648355,0.66130906,20655.0,20653.0,1.19242502]
[1673771649097,0.96745539,20657.0,20654.0,0.48240201]
[1673771649349,0.615285,20658.0,20653.0,0.56162946]
[1673771649602,0.058,20655.0,20653.0,1.04881846]
[1673771649856,0.77706307,20660.0,20654.0,0.3]
[1673771650112,0.63346486,20660.0,20654.0,0.787166]
[1673771650362,0.065,20657.0,20654.0,0.787166]
[1673771650615,0.82419081,20660.0,20654.0,0.784166]
[1673771650871,0.82419081,20660.0,20655.0,0.62325354]
[1673771651107,0.63346486,20660.0,20655.0,1.10739054]
[1673771651358,0.53531454,20659.0,20655.0,1.10739054]
[1673771651619,0.53531454,20659.0,20655.0,0.484137]
[1673771651892,0.02812779,20660.0,20655.0,1.01784349]
[1673771652167,0.81882879,20660.0,20655.0,0.484137]
[1673771652388,0.62810284,20660.0,20655.0,0.96133869]
[1673771652645,0.21885374,20660.0,20655.0,0.96133869]
[1673771652896,0.065,20659.0,20655.0,0.96133869]
[1673771653149,0.065,20659.0,20655.0,1.06133869]
[1673771653396,0.25572595,20659.0,20655.0,1.06433869]
[1673771653644,0.02812779,20660.0,20655.0,1.19243869]
[1673771653895,0.22585374,20660.0,20656.0,0.3]
[1673771654146,0.03512779,20660.0,20657.0,1.45228]
[1673771654914,0.005,20659.0,20657.0,1.45228]
[1673771655178,0.02812779,20660.0,20657.0,1.45228]
[1673771655413,0.02812779,20660.0,20657.0,1.45628]
[1673771655671,0.08312779,20660.0,20657.0,1.45228]
[1673771655963,0.08312779,20660.0,20658.0,0.65763928]
[1673771655964,0.005,20659.0,20658.0,0.65763928]
[1673771656191,0.02812779,20660.0,20658.0,1.14171228]
[1673771656448,0.08312779,20660.0,20658.0,1.14171228]
[1673771656692,0.02812779,20660.0,20658.0,1.14171228]
[1673771657726,0.002,20659.0,20658.0,1.15671228]
[1673771657969,0.02812779,20660.0,20658.0,1.14171228]
[1673771658219,0.08812779,20660.0,20658.0,1.14471228]
[1673771658496,0.08812779,20660.0,20659.0,0.47720169]
[1673771658727,0.08812779,20660.0,20659.0,2.35218825]
[1673771658981,0.08812779,20660.0,20659.0,2.92643707]
[1673771659233,0.08812779,20660.0,20659.0,3.07108765]
[1673771659490,0.00473639,20663.0,20660.0,0.1]
[1673771659747,0.00473639,20663.0,20662.0,0.13]
[1673771659996,0.00473639,20663.0,20662.0,1.73452919]
[1673771661754,0.00973639,20663.0,20662.0,1.77152919]
[1673771662005,0.00473639,20663.0,20662.0,1.87899096]
[1673771662251,0.00749249,20663.0,20662.0,1.91599096]
[1673771662512,0.00749249,20663.0,20662.0,1.73452919]
[1673771662765,0.01249249,20663.0,20662.0,1.77152919]
[1673771663015,0.00249249,20663.0,20662.0,1.73452919]
[1673771664037,0.00749249,20663.0,20662.0,1.77152919]
[1673771664530,0.00249249,20663.0,20662.0,1.73452919]
[1673771664792,0.00749249,20663.0,20662.0,1.77152919]
[1673771665028,0.00249249,20663.0,20662.0,1.87897731]
[1673771665277,0.00749249,20663.0,20662.0,1.91597731]
[1673771665790,0.00249249,20663.0,20662.0,1.87891574]
[1673771666067,0.00249249,20663.0,20662.0,1.73452919]
[1673771666300,0.00249249,20663.0,20662.0,1.77152919]
[1673771666301,0.00749249,20663.0,20662.0,1.77152919]
[1673771667055,0.00749249,20663.0,20662.0,1.78002919]
[1673771667337,0.00249249,20663.0,20662.0,1.74302919]
[1673771667568,0.00749249,20663.0,20662.0,1.78002919]
[1673771667816,0.00749249,20663.0,20662.0,1.92441574]
[1673771668072,0.01249249,20663.0,20662.0,1.96141574]
[1673771668339,0.00749249,20663.0,20662.0,2.27542455]
[1673771668632,0.00749249,20663.0,20662.0,1.88741574]
[1673771668633,0.00249249,20663.0,20662.0,1.88741574]
[1673771669133,0.00392447,20665.0,20662.0,1.88741574]
[1673771669365,0.00392447,20665.0,20663.0,0.92904919]
[1673771669616,0.00392447,20665.0,20664.0,2.83494819]
[1673771669965,0.00392447,20665.0,20664.0,3.19394819]
[1673771670158,0.00392447,20665.0,20664.0,2.55910069]
[1673771670672,0.00892447,20665.0,20664.0,2.59610069]
[1673771670933,0.00392447,20665.0,20664.0,2.55910069]
[1673771671184,0.00892447,20665.0,20664.0,2.59610069]
[1673771671434,0.00392447,20665.0,20664.0,2.85910069]
[1673771671708,0.00892447,20665.0,20664.0,2.89610069]
[1673771671955,0.00892447,20665.0,20664.0,2.85910069]
[1673771672224,0.00892447,20665.0,20664.0,2.89610069]
[1673771672225,0.01392447,20665.0,20664.0,2.89610069]
[1673771672526,0.00498958,20668.0,20665.0,0.00433654]
[1673771672782,0.00498958,20668.0,20666.0,2.48885969]
[1673771673073,0.00498958,20668.0,20667.0,0.70740169]
[1673771673325,0.00498958,20668.0,20667.0,1.39126469]
[1673771673584,0.00498958,20668.0,20667.0,1.09126469]
[1673771673859,0.00898958,20668.0,20667.0,1.75698861]
[1673771674120,0.00498958,20668.0,20667.0,1.09126469]
[1673771674391,0.00898958,20668.0,20667.0,1.13726469]
[1673771674645,0.00498958,20668.0,20667.0,1.39126469]
[1673771674897,0.00898958,20668.0,20667.0,1.43726469]
[1673771675182,0.00498958,20668.0,20667.0,1.95196272]
[1673771675440,0.00498958,20668.0,20667.0,1.71266898]
[1673771675702,0.00498958,20668.0,20667.0,1.58246898]
[1673771676213,0.00898958,20668.0,20667.0,1.58246898]
[1673771676497,0.00898958,20668.0,20667.0,0.96106469]
[1673771676754,0.00898958,20668.0,20667.0,1.26106469]
[1673771676755,0.00498958,20668.0,20667.0,1.26106469]
[1673771677805,0.00498958,20668.0,20667.0,1.39106469]
[1673771678157,0.00898958,20668.0,20667.0,1.78041219]
[1673771678670,0.00898958,20668.0,20667.0,2.26427519]
[1673771679194,0.00498958,20668.0,20667.0,2.21827519]
[1673771679450,0.00898958,20668.0,20667.0,2.21827519]
[1673771679702,0.00898958,20668.0,20667.0,2.26427519]
[1673771679703,0.01298958,20668.0,20667.0,2.26427519]
[1673771681011,0.00392447,20669.0,20667.0,2.40357519]
[1673771681273,0.00392447,20669.0,20668.0,1.22904919]
[1673771681540,4.7e-07,20669.0,20668.0,1.97508819]
[1673771681852,0.00593608,20671.0,20668.0,2.49991984]
[1673771682115,0.00593608,20671.0,20669.0,0.95054919]
[1673771682381,0.00593608,20671.0,20670.0,0.77720169]
[1673771682632,0.00593608,20671.0,20670.0,2.57192519]
[1673771682890,0.00593608,20671.0,20670.0,3.34552519]
[1673771683178,0.00893608,20671.0,20670.0,3.00217769]
[1673771683428,0.00593608,20671.0,20670.0,3.00217769]
[1673771683686,0.04493608,20671.0,20670.0,2.87517769]
[1673771684480,0.04493608,20671.0,20670.0,2.88367769]
[1673771686100,0.00593608,20671.0,20670.0,2.87967769]
[1673771686369,0.00893608,20671.0,20670.0,2.93567769]
[1673771689190,0.00893608,20671.0,20670.0,2.62563117]
[1673771689463,0.00893608,20671.0,20670.0,2.49513117]
[1673771689770,0.00893608,20671.0,20670.0,1.98457769]
[1673771690254,0.00893608,20671.0,20670.0,2.32792519]
[1673771690508,0.00893608,20671.0,20670.0,2.88912519]
[1673771690767,0.00893608,20671.0,20670.0,2.89762519]
[1673771692832,0.00893608,20671.0,20670.0,2.59762519]
[1673771693089,0.00893608,20671.0,20670.0,2.12427769]
[1673771693363,0.00893608,20671.0,20670.0,2.36838201]
[1673771693843,0.00893608,20671.0,20670.0,2.11577769]
[1673771694090,0.00893608,20671.0,20670.0,2.64207428]
[1673771694349,0.00893608,20671.0,20670.0,1.98457769]
[1673771695376,0.00893608,20671.0,20670.0,2.28457769]
[1673771695625,0.00893608,20671.0,20670.0,1.98457769]
[1673771695880,0.00893608,20671.0,20670.0,2.28457769]
[1673771696140,0.00893608,20671.0,20670.0,1.98457769]
[1673771696631,0.00893608,20671.0,20670.0,2.28457769]
[1673771699743,0.00893608,20671.0,20670.0,2.62792519]
[1673771700012,0.00893608,20671.0,20670.0,2.28457769]
[1673771700528,0.00893608,20671.0,20670.0,1.98457769]
[1673771701042,0.00893608,20671.0,20670.0,2.49053305]
[1673771701397,0.00893608,20671.0,20670.0,2.56396757]
[1673771701584,0.00893608,20671.0,20670.0,2.95173258]
[1673771701830,0.00893608,20671.0,20670.0,2.28402169]
[1673771704378,0.00881406,20671.0,20670.0,2.77185383]
[1673771704653,0.00881406,20671.0,20670.0,2.79731514]
[1673771704906,0.00881406,20671.0,20670.0,3.15864325]
[1673771705192,0.00881406,20671.0,20670.0,2.6453498]
[1673771705452,0.00881406,20671.0,20670.0,3.43317672]
[1673771706464,0.00881406,20671.0,20670.0,3.57769894]
[1673771706713,0.00881406,20671.0,20670.0,3.23435144]
[1673771706965,0.00881406,20671.0,20670.0,3.24285144]
[1673771707478,0.00881406,20671.0,20670.0,3.71716537]
[1673771707799,0.00881406,20671.0,20670.0,3.08467529]
[1673771708036,0.19954001,20671.0,20670.0,2.45160188]
[1673771708272,0.19954001,20671.0,20670.0,2.34547864]
[1673771708273,0.00881406,20671.0,20670.0,2.34547864]
[1673771708527,0.00881406,20671.0,20670.0,2.5221863]
[1673771708785,0.00881406,20671.0,20670.0,2.12860413]
[1673771709112,0.00881406,20671.0,20670.0,2.34547864]
[1673771709282,0.00881406,20671.0,20670.0,2.52219933]
[1673771709786,0.00881406,20671.0,20670.0,2.72219933]
[1673771710044,0.00881406,20671.0,20670.0,2.72224883]
[1673771710296,0.00881406,20671.0,20670.0,2.57761689]
[1673771710555,0.00881406,20671.0,20670.0,2.64990726]
[1673771710811,0.00881406,20671.0,20670.0,2.86694722]
[1673771711069,0.00881406,20671.0,20670.0,2.86694638]
[1673771711346,0.00881406,20671.0,20670.0,2.64990726]
[1673771711618,0.00881406,20671.0,20670.0,3.01163913]
[1673771712874,0.00881406,20671.0,20670.0,2.72247425]
[1673771713640,0.00881406,20671.0,20670.0,3.07360681]
[1673771714140,0.00881406,20671.0,20670.0,2.73097425]
[1673771714655,0.00881406,20671.0,20670.0,3.07360681]
[1673771714912,0.00881406,20671.0,20670.0,2.71187494]
[1673771716202,0.00881406,20671.0,20670.0,2.84307494]
[1673771716714,0.00881406,20671.0,20670.0,2.50044238]
[1673771716966,0.00881406,20671.0,20670.0,2.84307494]
[1673771717483,0.00881406,20671.0,20670.0,3.27745522]
[1673771717733,0.00881406,20671.0,20670.0,2.84307494]
[1673771717997,0.00881406,20671.0,20670.0,3.27744322]
[1673771718279,0.00881406,20671.0,20670.0,2.93481066]
[1673771718521,0.00881406,20671.0,20670.0,3.27744322]
[1673771719278,0.00593608,20672.0,20671.0,0.10433308]
[1673771719532,0.00593608,20672.0,20671.0,2.15852525]
[1673771719794,0.00593608,20672.0,20671.0,2.45852525]
[1673771720045,0.00593608,20672.0,20671.0,2.7672443]
[1673771721076,0.00893608,20672.0,20671.0,2.8262443]
[1673771721862,0.00427644,20673.0,20671.0,2.08305702]
[1673771722126,0.00427644,20673.0,20672.0,1.30505494]
[1673771722404,0.00427644,20673.0,20672.0,3.26876819]
[1673771722672,0.00427644,20673.0,20672.0,3.39875551]
[1673771723495,0.00648958,20677.0,20672.0,3.39875551]
[1673771723751,0.00648958,20677.0,20676.0,0.65155822]
[1673771724002,0.00648958,20677.0,20676.0,3.59313973]
[1673771724734,0.00648958,20677.0,20676.0,3.5400867]
[1673771724753,0.00648958,20677.0,20676.0,3.09529549]
[1673771725004,0.00648958,20677.0,20676.0,3.25045162]
[1673771725517,0.00648958,20677.0,20676.0,3.39918074]
[1673771725769,0.00648958,20677.0,20676.0,3.95488074]
[1673771726032,0.00648958,20677.0,20676.0,3.73769516]
[1673771726295,0.00648958,20677.0,20676.0,4.08032772]
[1673771726552,0.00460982,20680.0,20677.0,0.1]
[1673771726834,0.00460982,20680.0,20679.0,0.36178445]
[1673771727419,0.00460982,20680.0,20679.0,0.483582]
[1673771727425,0.00460982,20680.0,20678.0,0.483605]
[1673771727672,0.00460982,20680.0,20677.0,0.97704767]
[1673771727924,0.00460982,20680.0,20677.0,1.45424936]
[1673771728189,0.00460982,20680.0,20679.0,0.092]
[1673771728452,0.00460982,20680.0,20678.0,0.50418518]
[1673771729196,0.62747427,20680.0,20678.0,0.50418518]
[1673771729433,0.62747427,20680.0,20678.0,0.004]
[1673771729434,0.321511,20679.0,20678.0,0.004]
[1673771730187,0.321511,20679.0,20676.0,1.12418167]
[1673771730430,0.75777427,20680.0,20676.0,1.12418167]
[1673771730693,0.94850022,20680.0,20677.0,0.62591]
[1673771730947,0.47078372,20679.0,20678.0,0.004]
[1673771731218,1.05449472,20679.0,20675.0,0.56386892]
[1673771731443,1.05449472,20679.0,20676.0,0.57928661]
[1673771731444,0.1312,20677.0,20676.0,0.57928661]
[1673771731697,0.321511,20677.0,20676.0,0.57928661]
[1673771731946,0.1312,20678.0,20677.0,0.6015343]
[1673771732209,0.47078372,20679.0,20677.0,0.6015343]
[1673771732459,0.321511,20678.0,20677.0,0.6015343]
[1673771732973,0.47078372,20679.0,20677.0,0.6015343]
[1673771733219,0.321511,20678.0,20677.0,0.6015343]
[1673771733506,0.321511,20678.0,20677.0,0.04181534]
[1673771733727,0.321511,20678.0,20677.0,0.04581534]
[1673771733986,0.00460982,20680.0,20677.0,0.52301703]
[1673771734235,0.00460982,20680.0,20677.0,1.00664603]
[1673771734494,0.00460982,20680.0,20677.0,1.49027503]
[1673771735031,0.00460982,20680.0,20678.0,0.77720169]
[1673771735274,0.00460982,20680.0,20679.0,0.47720169]
[1673771735535,0.00460982,20680.0,20679.0,1.92794769]
[1673771736813,0.00460982,20680.0,20679.0,2.23494769]
[1673771737068,0.00460982,20680.0,20679.0,1.93494769]
[1673771738085,0.00460982,20680.0,20679.0,1.92794769]
[1673771738334,0.35958528,20685.0,20679.0,2.01994769]
[1673771738578,0.35958528,20685.0,20680.0,1.08563678]
[1673771738579,0.9748872,20685.0,20680.0,1.08563678]
[1673771738869,0.75913684,20685.0,20681.0,1.44424769]
[1673771739845,0.51124455,20686.0,20681.0,1.44424769]
[1673771739846,0.90921017,20686.0,20681.0,1.44424769]
[1673771740102,0.69343829,20686.0,20681.0,1.44424769]
[1673771740347,0.90921017,20686.0,20681.0,1.44424769]
[1673771740596,0.88416424,20686.0,20681.0,1.44424769]
[1673771741085,0.34234019,20686.0,20681.0,1.53724769]
[1673771741336,0.34234019,20686.0,20681.0,1.44424769]
[1673771741580,0.34234019,20686.0,20681.0,1.53724769]
[1673771741832,1.00138699,20686.0,20682.0,0.62991516]
[1673771742096,1.01614428,20685.0,20682.0,0.62991516]
[1673771742354,0.321511,20684.0,20682.0,0.62991516]
[1673771742609,0.216345,20683.0,20682.0,0.62991516]
[1673771744384,0.216345,20683.0,20680.0,0.483546]
[1673771744632,0.321511,20682.0,20681.0,0.58120081]
[1673771744910,0.63446972,20685.0,20682.0,0.65085148]
[1673771744911,0.007,20683.0,20682.0,0.65085148]
[1673771745652,0.78003948,20685.0,20682.0,0.64685148]
[1673771746205,0.98146674,20684.0,20682.0,0.64685148]
[1673771746403,0.216345,20683.0,20680.0,1.08609138]
[1673771746664,0.321511,20682.0,20680.0,0.60254538]
[1673771746909,0.19072595,20683.0,20680.0,0.60254538]
[1673771747154,0.007,20683.0,20682.0,0.004]
[1673771747404,0.321511,20683.0,20680.0,0.60254538]
[1673771747650,0.216345,20682.0,20680.0,0.60954538]
[1673771747892,0.321511,20681.0,20680.0,0.60254538]
[1673771748148,0.007,20683.0,20681.0,0.59686879]
[1673771748666,0.321511,20682.0,20681.0,0.59686879]
[1673771748898,0.216345,20682.0,20681.0,0.59686879]
[1673771749201,0.007,20683.0,20681.0,0.59686879]
[1673771749454,0.321511,20682.0,20681.0,0.59686879]
[1673771749713,0.007,20683.0,20681.0,0.59686879]
[1673771750485,1.00671283,20685.0,20681.0,0.59686879]
[1673771750739,0.451811,20684.0,20681.0,0.59686879]
[1673771750997,0.216345,20683.0,20681.0,0.59686879]
[1673771751281,0.321511,20682.0,20681.0,1.08039279]
[1673771751522,0.1303,20684.0,20681.0,1.08039279]
[1673771752046,0.321511,20683.0,20681.0,1.08739279]
[1673771752300,0.216345,20682.0,20681.0,1.08039279]
[1673771752600,0.007,20682.0,20681.0,1.08739279]
[1673771752826,0.007,20682.0,20680.0,1.03597999]
[1673771753084,0.66799746,20682.0,20681.0,0.007]
[1673771753326,0.98250846,20682.0,20680.0,0.55242499]
[1673771753586,0.216345,20681.0,20680.0,0.55242499]
[1673771753882,0.40707095,20681.0,20679.0,0.48356]
[1673771754155,0.40707095,20681.0,20677.0,0.56622106]
[1673771754156,1.10441363,20680.0,20677.0,0.56622106]
[1673771754381,0.216345,20679.0,20677.0,0.56622106]
[1673771754646,0.97362858,20680.0,20677.0,0.56622106]
[1673771754647,0.321511,20678.0,20677.0,0.56622106]
[1673771754915,0.452711,20678.0,20677.0,0.04181534]
[1673771755430,0.452711,20678.0,20677.0,0.04781534]
[1673771755674,0.452711,20678.0,20677.0,0.66985215]
[1673771755675,0.321511,20678.0,20677.0,0.66985215]
[1673771755933,0.76466055,20680.0,20678.0,0.49009695]
[1673771756198,0.321511,20679.0,20678.0,0.49009695]
[1673771756720,0.321511,20679.0,20677.0,0.04181534]
[1673771756960,0.216345,20678.0,20677.0,0.04181534]
[1673771757220,0.084,20678.0,20677.0,0.69621015]
[1673771757478,0.57258111,20679.0,20677.0,0.04181534]
[1673771757759,0.65658111,20679.0,20678.0,0.001]
[1673771758037,0.89409211,20679.0,20677.0,0.04181534]
[1673771758274,0.300345,20678.0,20677.0,0.04281534]
[1673771758527,0.216345,20678.0,20677.0,0.04181534]
[1673771758780,0.614805,20678.0,20677.0,0.04281534]
[1673771759097,0.936316,20678.0,20677.0,0.04181534]
[1673771759297,0.936316,20678.0,20677.0,0.04281534]
[1673771759553,1.58372834,20678.0,20677.0,0.04281534]
[1673771759808,1.43979314,20678.0,20677.0,0.04270875]
[1673771760320,1.58368542,20678.0,20677.0,0.04270875]
[1673771760572,1.79955355,20678.0,20677.0,0.04170875]
[1673771760864,1.53731491,20678.0,20677.0,0.04170875]
[1673771761393,0.90246947,20678.0,20677.0,0.04170875]
[1673771761678,0.75857913,20678.0,20677.0,0.04170875]
[1673771761928,1.4258634,20678.0,20677.0,0.04170875]
[1673771762435,1.06610334,20678.0,20677.0,0.04170875]
[1673771762941,0.74459234,20678.0,20677.0,0.04170875]
[1673771763216,1.06610334,20678.0,20677.0,0.04170875]
[1673771763697,0.74459234,20678.0,20677.0,0.04170875]
[1673771763960,1.06610334,20678.0,20677.0,0.04170875]
[1673771764229,0.411511,20678.0,20677.0,0.04170875]
[1673771764478,0.09,20678.0,20677.0,0.66990253]
[1673771765987,0.09,20678.0,20677.0,1.15353153]
[1673771767561,0.09,20678.0,20677.0,0.04170875]
[1673771767562,0.75308981,20678.0,20677.0,0.04170875]
[1673771768067,0.09,20678.0,20677.0,0.04170875]
[1673771769080,0.09,20678.0,20677.0,0.55105931]
[1673771775261,0.67926624,20678.0,20677.0,0.04170875]
[1673771775512,1.13067724,20678.0,20677.0,0.04170875]
[1673771776531,1.27450324,20678.0,20677.0,0.04170875]
[1673771776802,1.13067724,20678.0,20677.0,0.04170875]
[1673771777064,1.27448774,20678.0,20677.0,0.04170875]
[1673771777579,1.75809274,20678.0,20677.0,0.04170875]
[1673771781786,3.2860956,20678.0,20677.0,0.04170875]
[1673771782037,3.2860956,20678.0,20671.0,0.66322943]
[1673771782038,0.02044128,20676.0,20671.0,0.66322943]
[1673771782323,0.1312,20672.0,20668.0,0.56582451]
[1673771782594,0.1312,20672.0,20668.0,1.0430262]
[1673771782595,0.51223695,20671.0,20668.0,1.0430262]
[1673771782844,0.1312,20672.0,20669.0,0.58767971]
[1673771782845,0.40707095,20670.0,20669.0,0.58767971]
[1673771783101,0.62754592,20673.0,20668.0,1.0430262]
[1673771783358,0.19072595,20673.0,20668.0,1.0430262]
[1673771783628,0.008,20672.0,20668.0,1.0430262]
[1673771783900,0.19072595,20672.0,20669.0,0.54490469]
[1673771784157,0.72866996,20672.0,20669.0,0.54490469]
[1673771784438,0.50569339,20671.0,20668.0,0.56582451]
[1673771784691,0.321511,20670.0,20668.0,0.56582451]
[1673771784991,0.216345,20669.0,20668.0,0.56582451]
[1673771785264,1.18018834,20671.0,20668.0,1.04537441]
[1673771785519,0.98946239,20671.0,20668.0,1.04611096]
[1673771785780,0.98946239,20671.0,20668.0,1.04537441]
[1673771786546,0.09,20669.0,20668.0,1.04537441]
[1673771786556,0.50569339,20671.0,20668.0,1.04537441]
[1673771786819,0.09,20671.0,20669.0,0.47720169]
[1673771787076,0.77428198,20676.0,20670.0,0.483792]
[1673771787325,0.09,20671.0,20670.0,0.483792]
[1673771787835,0.09,20671.0,20670.0,1.00800079]
[1673771788349,0.16410688,20676.0,20670.0,0.483792]
[1673771788613,0.091,20671.0,20670.0,1.12184325]
[1673771788883,0.63935451,20674.0,20670.0,1.12184325]
[1673771789153,0.091,20671.0,20670.0,1.12184325]
[1673771789386,0.60946073,20674.0,20670.0,1.12184325]
[1673771790182,0.70046073,20674.0,20670.0,1.12184325]
[1673771790457,0.70046073,20674.0,20671.0,0.60418378]
[1673771790710,0.2215,20674.0,20671.0,0.60418378]
[1673771790970,0.2215,20674.0,20671.0,1.08795178]
[1673771791585,0.1305,20674.0,20671.0,1.08795178]
[1673771791842,0.2215,20674.0,20671.0,1.08795178]
[1673771792315,0.091,20674.0,20671.0,0.483768]
[1673771793433,0.02044128,20676.0,20671.0,0.483768]
[1673771793683,0.02044128,20676.0,20673.0,0.1308]
[1673771793939,0.02044128,20676.0,20675.0,0.96735]
[1673771795260,0.02944128,20676.0,20675.0,0.97608631]
[1673771795518,0.02044128,20676.0,20675.0,1.55042056]
[1673771795801,0.02644128,20676.0,20675.0,1.56642056]
[1673771797139,0.02644128,20676.0,20675.0,0.59907056]
[1673771797882,0.02644128,20676.0,20675.0,0.016]
[1673771798185,0.91256181,20676.0,20675.0,0.016]
[1673771799699,0.80739581,20676.0,20675.0,0.016]
[1673771799922,0.91256181,20676.0,20675.0,0.016]
[1673771800161,0.59105081,20676.0,20675.0,0.016]
[1673771800408,0.59105081,20676.0,20675.0,0.09365]
[1673771800409,0.34795228,20676.0,20675.0,0.09365]
[1673771800663,0.34795228,20676.0,20675.0,0.64310752]
[1673771800664,0.02644128,20676.0,20675.0,0.64310752]
[1673771805859,0.02644128,20676.0,20675.0,0.63810752]
[1673771808846,0.02644128,20676.0,20675.0,0.011]
[1673771809090,0.86519169,20676.0,20675.0,0.011]
[1673771809373,1.34884369,20676.0,20675.0,0.011]
[1673771810386,1.49250929,20676.0,20675.0,0.011]
[1673771810864,1.32061196,20676.0,20675.0,0.011]
[1673771811115,3.37560543,20676.0,20675.0,0.011]
[1673771811361,3.21940729,20676.0,20675.0,0.011]
[1673771811605,3.21960526,20676.0,20675.0,0.011]
[1673771811875,3.21360526,20676.0,20670.0,0.65589357]
[1673771812115,0.1303,20674.0,20670.0,0.65589357]
[1673771812358,0.99595995,20673.0,20670.0,0.65589357]
[1673771812603,0.67444895,20673.0,20670.0,0.65589357]
[1673771813341,0.62759057,20673.0,20670.0,0.65589357]
[1673771813602,0.62760692,20673.0,20670.0,0.65589357]
[1673771813850,0.49426125,20672.0,20669.0,0.5381]
[1673771814101,0.6849872,20672.0,20668.0,0.6289493]
[1673771814856,0.6849872,20672.0,20670.0,0.52294273]
[1673771815104,0.49426125,20672.0,20670.0,0.52294273]
[1673771816130,0.50126125,20672.0,20670.0,0.52294273]
[1673771816382,0.49426125,20672.0,20670.0,0.52294273]
[1673771816639,0.58226125,20672.0,20670.0,0.52294273]
[1673771816886,0.58226125,20672.0,20669.0,0.50520687]
[1673771817900,0.49426125,20672.0,20669.0,0.50520687]
[1673771818146,0.51726125,20672.0,20669.0,0.50520687]
[1673771819173,0.57329471,20671.0,20669.0,0.50520687]
[1673771820972,0.59629471,20671.0,20669.0,0.50520687]
[1673771822757,0.023,20671.0,20669.0,0.50520687]
[1673771825252,0.64345074,20671.0,20669.0,0.50520687]
[1673771825519,0.64345074,20671.0,20668.0,0.97910051]
[1673771825520,0.66056734,20670.0,20668.0,0.01142451]
[1673771825775,0.321511,20669.0,20668.0,0.01142451]
[1673771826032,0.66056734,20670.0,20668.0,0.01142451]
[1673771826283,0.66056734,20670.0,20668.0,0.00642451]
[1673771826585,0.321511,20669.0,20668.0,0.00642451]
[1673771827099,0.57040648,20669.0,20668.0,0.00642451]
[1673771827352,0.53898172,20671.0,20668.0,0.51492975]
[1673771827928,0.53387493,20670.0,20668.0,0.51492975]
[1673771828186,0.62755849,20672.0,20668.0,0.51492975]
[1673771828447,0.987243,20673.0,20669.0,0.01805477]
[1673771828448,0.61000608,20673.0,20669.0,0.01805477]
[1673771828709,0.77450504,20676.0,20670.0,1.098772]
[1673771828992,0.50071254,20675.0,20670.0,1.97712438]
[1673771829245,0.50071254,20675.0,20670.0,1.636672]
[1673771829505,0.01,20673.0,20671.0,0.60730169]
[1673771829774,0.02044128,20676.0,20672.0,1.451209]
[1673771830029,0.02944128,20676.0,20673.0,0.34045238]
[1673771830328,0.02044128,20676.0,20674.0,0.967398]
[1673771830609,0.009,20675.0,20674.0,0.967398]